Cogmind - Beta 16 @@@ ROGUE MODE // 2026.01.01 @ 19:59:48 Player: GermanMO Result: Destroyed by 65-NDG(R) with Subdweller Beam Cannon Performance ------------- Evolutions (0) 0 Regions Visited (2) 400 Robots Destroyed (24) 120 Value Destroyed (329) 329 Prototype IDs (0) 0 Alien Tech Used (0) 0 Bonus (0) 0 TOTAL SCORE: 849 Bonus ------- None Cogmind --------- Core Integrity 0/250 Matter 172/300 Energy 90/100 System Corruption 0% Temperature Cool (9) Movement Rolling (140) Ox4 Location -10/Subcaves Parts ------- > --- POWER (1) -------- (None) > --- PROPULSION (2) --- Wheel > --- UTILITY (2) ------ High-capacity Storage Unit Subdweller Optics > --- WEAPON (2) ------- (None) > --- INVENTORY (20) --- Light Treads Light Treads Flight Unit Flight Unit Flight Unit Flight Unit Flight Unit Flight Unit Flight Unit Sensor Array Signal Interpreter Improved Terrain Scanner Improved Terrain Scanner Utility Shielding Scrap Shield Peak State ------------ > --- POWER ------------ Subdweller Power Source > --- PROPULSION ------- Wheel Wheel > --- UTILITY ---------- High-capacity Storage Unit Subdweller Optics > --- WEAPON ----------- Beam Cannon Subdweller Shrapnel Launcher > --- INVENTORY -------- Light Treads Light Treads Wheel Flight Unit Flight Unit Flight Unit Flight Unit Flight Unit Flight Unit Flight Unit Sensor Array Signal Interpreter Improved Terrain Scanner Improved Terrain Scanner Utility Shielding Scrap Shield [Rating: 12] Favorites ----------- Power Ion Engine Engine Ion Engine Propulsion Wheel Wheel Wheel Utility Improved Terrain Scanner Device Improved Terrain Scanner Storage Small Storage Unit Protection Light Armor Plating Weapon Medium Laser Energy Gun Medium Laser Energy Cannon Beam Cannon Launcher Subdweller Shrapnel Launcher Special Weapon Mining Laser Build | -11 -10 -10 ------- Run | Yrd Mat Sub Slots Evolved . | . . . Power . | . . . Propulsion . | . . . Utility . | . . . Weapon . | . . . Parts Attached 19 | 7 3 9 Power 2 | 1 . 1 Engine 2 | 1 . 1 Core . | . . . Reactor . | . . . Propulsion 4 | 2 . 2 Treads . | . . . Leg . | . . . Wheel 4 | 2 . 2 Hover . | . . . Flight . | . . . Utility 7 | 2 1 4 Device 4 | 1 . 3 Storage 2 | 1 1 . Processor . | . . . Hackware . | . . . Protection 1 | . . 1 Artifact . | . . . Weapon 6 | 2 2 2 Energy Gun 2 | 2 . . Energy Cannon 1 | . 1 . Ballistic Gun . | . . . Ballistic Cannon . | . . . Launcher 2 | . . 2 Special Weapon 1 | . 1 . Impact Weapon . | . . . Slashing Weapon . | . . . Piercing Weapon . | . . . Special Melee Weapon . | . . . Unidentified Prototypes . | . . . Parts Lost 9 | . . 9 Power 2 | . . 2 Propulsion 3 | . . 3 Utility . | . . . Weapon 4 | . . 4 Highest Loss Streak 5 | . . 5 To Critical Strikes . | . . . Average Backups 11 | 7 14 17 Power . | . . . Propulsion 6 | 3 8 10 Utility 4 | 2 4 6 Weapon . | . 1 . Tool/Special . | . . . Unused Backups 17 | . . 17 Power . | . . . Propulsion 9 | . . 9 Utility 8 | . . 8 Weapon . | . . . Tool/Special . | . . . Average Slot Usage (%) 97 | . 100 96 Engine 13 | . 14 13 Wheel 27 | . 28 27 Device 13 | . 14 12 Storage 14 | . 14 14 Energy Gun 5 | . 8 3 Energy Cannon 12 | . 12 12 Launcher 3 | . . 5 Special Weapon 4 | . 7 3 Peak Build Rating 12 | 10 11 12 Average Rating 9 | 9 10 10 On Entrance 7 | . 10 11 Avg Prop Armor Cover (%) . | . . . Naked Turns . | . . . Heaviest Build 58 | 14 51 58 Greatest Support 20 | 20 20 20 Greatest Overweight (x) 5 | 1 2 5 Average Overweight (x) 1 | . 1 2 Largest Inventory Capacity 20 | 8 20 20 Average Capacity 12 | 7 19 20 Most Carried 20 | 8 20 20 Average Carried 11 | 7 14 18 Final Capacity 20 | 8 20 20 Final Carried 20 | 8 20 16 Class Distribution -------------------- 100% | Mutant Dominant Class ---------------- Mutant | -10/Materials Mutant | -10/Subcaves Resources | -11 -10 -10 ----------- Run | Yrd Mat Sub Matter Collected 472 | 270 50 152 Remotely . | . . . Salvage Created 585 | 293 133 159 Parts 53 | 32 10 11 Haulers Intercepted . | . . . Recyclers Shooed 1 | . 1 . Parts Field Recycled . | . . . Retrieved Matter . | . . . Parts Self-Destructed 16 | . . 16 Prevented . | . . . Parts Restored . | . . . Kills | -11 -10 -10 ------- Run | Yrd Mat Sub Combat Hostiles Destroyed 8 | . 3 5 Guns 3 | . 3 . Cannons 3 | . . 3 AOE 2 | . . 2 Classes Destroyed 7 | 3 2 2 Worker 4 | 4 . . Tunneler 9 | 9 . . Recycler 2 | 1 1 . Watcher 1 | . 1 . Swarmer 3 | . 3 . Grunt 1 | . . 1 Subdweller 4 | . . 4 Best Kill Streak 5 | 5 4 2 Combat Bots Only 3 | . 3 2 Max Kills in Single Turn 1 | 1 1 1 Gunslinging . | . . . Exploded 1 | . . 1 Melee . | . . . Uniques/NPCs Destroyed . | . . . Combat | -11 -10 -10 -------- Run | Yrd Mat Sub Hostile Shots Fired 43 | . 7 36 Missed 11 | . 3 8 Hits 32 | . 4 28 Projectile 32 | . 4 28 AOE 6 | . . 6 Damage Taken 861 | . 36 825 Core 270 | . 10 260 Absorbed by Shields . | . . . Core Remaining (%) 100 | 100 . . Volleys Fired 88 | 26 24 38 Largest 2 | 2 2 2 Hottest 160 | 90 160 110 Shots Fired 134 | 52 36 46 Gun 67 | 52 9 6 Cannon 50 | . 21 29 Launcher 10 | . . 10 Special 7 | . 6 1 Kinetic 10 | . . 10 Thermal 124 | 52 36 36 Explosive . | . . . Electromagnetic . | . . . Robot Hit Streak 6 | 6 4 6 Robot Miss Streak 2 | 2 2 2 Penetration Max . | . . . Secondary Targets . | . . . Shots Hit Robots 60 | 29 9 22 Core Hits 31 | 15 6 10 Critical Kills . | . . . Critical Parts Destroyed . | . . . Critical Strikes 1 | 1 . . Burn 1 | 1 . . Melee Attacks . | . . . Impact . | . . . Slashing . | . . . Piercing . | . . . Sneak Attacks . | . . . Combat Hostiles . | . . . Follow-up Attacks . | . . . Damage Inflicted 1115 | 356 131 628 Guns 467 | 356 61 50 Cannons 348 | . 70 278 Explosions 300 | . . 300 Melee . | . . . Ramming . | . . . Kinetic 300 | . . 300 Thermal 815 | 356 131 328 Explosive . | . . . Electromagnetic . | . . . Impact . | . . . Slashing . | . . . Piercing . | . . . Highest Corruption . | . . . Average Corruption . | . . . Corruption Purged . | . . . Corruption Blocked . | . . . Overload Shots . | . . . Overflow Damage . | . . . Projectiles . | . . . Explosions . | . . . Melee . | . . . Knockbacks . | . . . Impact . | . . . Kinetic . | . . . Secondary . | . . . Self-Inflicted Damage . | . . . Shots . | . . . Rammed . | . . . Targets Rammed . | . . . Kicked . | . . . Crushed . | . . . Highest Temperature 320 | 180 320 16 Average Temperature 85 | 66 118 9 Received Heat Transfer 141 | . . 141 Effects 1 | . 1 . Energy Bleed 1 | . 1 . Siege Activations . | . . . Martial Activations . | . . . Shielding Activations . | . . . Robots Disrupted . | . . . Combat Hostiles . | . . . Robots Corrupted . | . . . Combat Hostiles . | . . . Parts Fried . | . . . Impact Corruptions . | . . . Robots Melted . | . . . Combat Hostiles . | . . . Parts Melted 3 | 1 . 2 Heat Transferred 2137 | 1064 333 740 Parts Sabotaged . | . . . Parts Stolen . | . . . Parts Stripped . | . . . Power Chain Reactions . | . . . Alert | -11 -10 -10 ------- Run | Yrd Mat Sub Maximum Alert Level . | . . . Low Security (%) 100 | 100 100 . Level 1 . | . . . Level 2 . | . . . Level 3 . | . . . Level 4 . | . . . Level 5 . | . . . High Security . | . . . Max Security . | . . . Peak Influence 70 | 20 70 . Initial . | . . . Average 2 | . 14 . Influence Increases 192 | 70 102 20 Destroy 0b10 Robot/C 80 | . 60 20 Destroy 0b10 Robot/NC 80 | 70 10 . Destroy Leader 12 | . 12 . Disable Machine 15 | . 15 . Destroy Structure 5 | . 5 . Influence Decreases 192 | 70 102 20 Time Decay 184 | 70 102 12 Lost Part 8 | . . 8 Squads Dispatched . | . . . Investigation . | . . . Extermination . | . . . Reinforcement . | . . . Assault . | . . . Garrison . | . . . Intercept . | . . . Searches Triggered . | . . . Construction Impeded . | . . . Haulers Reinforced . | . . . Active Scanning Responses . | . . . Cargo Convoy Interrupts . | . . . Stealth | -11 -10 -10 --------- Run | Yrd Mat Sub Distress Signals 1 | . 1 . Communications Jammed . | . . . Distress Signals . | . . . Times Spotted 27 | . 9 18 Peak Tracking Total 4 | . 4 4 Tactical Retreats . | . . . Traps | -11 -10 -10 ------- Run | Yrd Mat Sub Traps Triggered . | . . . Indirectly . | . . . Trap Hack Attempts . | . . . Triggered . | . . . Disarmed . | . . . Reprogrammed . | . . . Reused . | . . . Traps Extracted . | . . . Installed . | . . . Triggered . | . . . Machines | -11 -10 -10 ---------- Run | Yrd Mat Sub Machines Disabled 1 | . 1 . Max in Single Turn 1 | . 1 . Machines Repaired . | . . . Machines Dismantled . | . . . Machines Sabotaged . | . . . Overloaded Fab Kills . | . . . Hacking | -11 -10 -10 --------- Run | Yrd Mat Sub Machines Accessed . | . . . Terminals . | . . . Fabricators . | . . . Repair Stations . | . . . Recycling Units . | . . . Scanalyzers . | . . . Garrison Access . | . . . Total Hacks . | . . . Successful . | . . . Failed . | . . . Catastrophic . | . . . Database Lockouts . | . . . Manual . | . . . Terminals . | . . . Fabricators . | . . . Repair Stations . | . . . Recycling Units . | . . . Scanalyzers . | . . . Garrison Access . | . . . Terminal Hacks . | . . . Fabricator Hacks . | . . . Repair Station Hacks . | . . . Recycling Unit Hacks . | . . . Scanalyzer . | . . . Garrison Access Hacks . | . . . Unauthorized Hacks . | . . . Terminals . | . . . Fabricators . | . . . Repair Stations . | . . . Recycling Units . | . . . Scanalyzers . | . . . Garrison Access . | . . . Data Cores Recovered . | . . . Used . | . . . Hacking Detections . | . . . Full Trace Events . | . . . Feedback Events . | . . . Feedback Blocked . | . . . Robot Schematics Acquired . | . . . Robots Built . | . . . Authchips . | . . . Time . | . . . Total Robot Build Rating . | . . . Part Schematics Acquired . | . . . Parts Built . | . . . Authchips . | . . . Time . | . . . Total Part Build Rating . | . . . Part Studies Acquired . | . . . Parts Repaired . | . . . Time . | . . . Parts Recycled . | . . . Recycled Matter . | . . . Retrieved Matter . | . . . Retrieved Components . | . . . Parts Scanalyzed . | . . . Part Schematics Acquired . | . . . Parts Damaged . | . . . Bothacking | -11 -10 -10 ------------ Run | Yrd Mat Sub Used RIF Installer . | . . . Robots Hacked . | . . . Non-combat . | . . . Combat . | . . . Robot Hacks Applied . | . . . Relay Couplers Released . | . . . Fabnet Peak Effective % . | . . . Robots Rewired . | . . . Allies Hacked . | . . . Hacks Repelled . | . . . Allies | -11 -10 -10 -------- Run | Yrd Mat Sub Total Allies . | . . . Largest Group . | . . . Highest-Rated Group . | . . . Highest-Rated Ally . | . . . Total Orders . | . . . Ally Attacks . | . . . Total Damage . | . . . Kills . | . . . Allies Corrupted . | . . . Allies Melted . | . . . Intel | -11 -10 -10 ------- Run | Yrd Mat Sub Active Infowar (turns) 3357 | 1924 488 945 Optics 939 | . . 939 Terrain 2418 | 1924 488 6 Robot Analysis Total . | . . . Derelict Logs Recovered . | . . . Drone Launches . | . . . Drone Recoveries . | . . . Exploration | -11 -10 -10 ------------- Run | Yrd Mat Sub Turns Passed 3747 | 2204 488 1055 Spaces Moved 1367 | 191 358 818 Core 8 | 8 . . Treads . | . . . Legs . | . . . Wheels 1359 | 183 358 818 Hover . | . . . Flight . | . . . Fastest Speed 50 | 50 80 110 Average Speed 106 | 80 108 111 Slowest Speed 155 | 95 110 155 Overloaded Moves . | . . . Propulsion Burnouts . | . . . Robots Hopped . | . . . Potential Cave-ins . | . . . Cave-ins Triggered . | . . . Exploration Rate (%) 35 | 6 44 55 Regions Visited 2 Branch Regions 1 Pre-discovered Areas . | . . . Known Exits Taken . | . . . Unknown Exits Taken 2 | 1 1 . Scrap Searched 11 | . . 11 Spaces Dug 4 | . 4 . Terrain Destroyed 129 | . 5 124 Melee . | . . . Projectile 5 | . 5 . AOE 124 | . . 124 Terrain Rammed . | . . . Walls Destroyed . | . . . Machines Disabled . | . . . Actions | -11 -10 -10 --------- Run | Yrd Mat Sub Total 3506 | 2185 410 911 Wait 1988 | 1954 2 32 Move 1365 | 190 357 818 Hop . | . . . Pick Up 26 | 8 15 3 Fast Attach 13 | 7 2 4 Attach 6 | . 1 5 Detach 3 | . 2 1 Swap 5 | . 2 3 Drop 12 | . 5 7 Fire 88 | 26 24 38 Melee . | . . . Ram . | . . . Kick . | . . . Crush . | . . . Escape Stasis . | . . . Rewire . | . . . Trap . | . . . Miscellaneous . | . . . Route ------- -11/Scrapyard -10/Materials (discovered 2 exits: [*Min] / [*Sub]) -10/Subcaves (discovered 1 exit: [*Mat]) History --------- Turn | Location | Event 12 | -11/Scrapyard | Discovered new exit (range 16) 2205 | -11/Scrapyard | Entered Materials 2206 | -10/Materials | Build established: Mutant 2252 | -10/Materials | Discovered new exit (range 12) 2524 | -10/Materials | Discovered new exit (range 16) 2693 | -10/Materials | Entered Subcaves 2783 | -10/Subcaves | Ambushed by Subdwellers from Twisted Machinery 3060 | -10/Subcaves | A swath of the cavern ceiling suddenly collapsed 3140 | -10/Subcaves | Disturbed a concealed Subdweller 3151 | -10/Subcaves | Disturbed a concealed Subdweller 3262 | -10/Subcaves | Ambushed by Subdweller buried in earth 3263 | -10/Subcaves | Core integrity fell below 50% 3303 | -10/Subcaves | Disturbed a concealed Subdweller 3362 | -10/Subcaves | Shifting Twisted Machinery released Battle Cannon 3364 | -10/Subcaves | Shifting Twisted Machinery released Shrapnel Trap 3732 | -10/Subcaves | Discovered new exit (range 15) 3738 | -10/Subcaves | Ambushed by Subdweller buried in earth 3739 | -10/Subcaves | Core integrity fell below 20% 3748 | -10/Subcaves | Destroyed by 65-NDG(R) with Subdweller Beam Cannon Last Messages --------------- 03666_ HV Slug penetrates Earth. 03667_ Sub. Monowheel melted. 03667_ Sub. Optics melted. 03667_ 7S-XK9(R) destroyed. 03676_ Acquired Sub. Power Source. 03729_ Acquired 20 matter. 03732_ EXIT=FOUND 03732_ Beam Cannon destroyed. 03735_ EU-4AL(R) affixes Scrap Shield Fragment to Scrap Shield. 03736_ Sub. Shrapnel Launcher destroyed. 03736_ Sub. Power Source destroyed. 03738_ Wheel destroyed. 03739_ 65-NDG(R): "HIDIE!" 03741_ 3X-CDU(h) destroyed. 03742_ KB-YRR(R): "ARGHSUB!" 03742_ EU-4AL(R) affixes Scrap Shield Fragment to Scrap Shield. 03744_ Wheel destroyed. 03746_ PM-1KJ(R): "ARGHSUB!" Map ----- +----------------------------------------------------+ | #??????????## ### " & " #??????? | | #???????????# ####"&! " #??????? | | ???????????# ###" %& #??????? | | #??????????# "" ## ""##??????? | | # ##??????????# #" % ####??????? | | ######???????????## # % #??????? | | ??????????????????## %! % ## #??????? | | ???????????????????# %| ######??????? | | ??????????????????## = #???????????? | | ??????????????#" ## #???????????? | | ??????????????#" ##???????????? | | ??????????????# ## ###????????????? | | ????????????? #?# #??????????????? | | ????????????? ?#??# ##??????????????? | | ??????????????# ?????# #####????#?? ???????? | | ?????????????????????## ###??? #?????? | | ??????????????????????# ## #??????? | | ??????????????????????# #???????? | | ????????????????????### ## #???????? | | ???????????????????## ####?? ### #???????? | | ??????????????????## ##?????? #?????#???????? | | ??????????????????# #####???????#??????????? | | ??????????????????# #### #?????????? | | ??????????????????## #??????????????? | | ???????????????????## ###??????????????? | | ????? " ????????????# @#######????????????????? | | ???? ! ???????### ! ####?????## ##??????????? | | ????# < ????# #&&[ " "#### #?????????? | | ?????# ### % "" #?????????? | | ??????# & R %& "## #????????????? | | ?????#" R ######???????????????? | | ?????#" ## R #????????????????????? | | ?????# ??## #???????????????????? | | ???? ; ?????# ##???????????????????? | | ????? ???????# #????????????????????? | | ??????? ????????## ## #???????????????????? | | ???????????????????###?# ??????????????????? | | ???????????????????????# ?????????????????? | | ???????????????????????# ????????????????? | | ???????????????????????? ??????????????? | | ???????????????????????? ## ?????????????? | | ???????????????????????? ##?# ????????????? | | ????????????????????????####??? ??????????? | | ???????????????????????????????? ??????????? | | ???????????????????????????????? # ??????????? | | ????????????????????????????????? ## ??????????? | | ?????????????????????????????????? ????????????? | | ?????????????????????????????????????????????????? | | ?????????????????????????????????????????????????? | | ?????????????????????????????????????????????????? | +----------------------------------------------------+ Best States ------------- Heat Dissipation 25 Energy Generation 15 Energy Capacity 250 Matter Stores 300 Matter Capacity 300 Sight Range 21 Terrain Scan Range 16 Terrain Scan Density 10 Armor Coverage 150 Evasion (%) 44 Item Schematics ----------------- None Robot Schematics ------------------ None Fabricated ------------ Nothing Repaired ---------- Nothing Studied --------- None Alien Tech Used ----------------- None Achievements -------------- None Challenges ------------ None Game ------ Seed FissionMiniPenetrator Manual? 0 Play Time 00:27:04 Cumulative 30.0 hours Start 2026.01.01 @ 19:32:09 End 2026.01.01 @ 19:59:48 Sessions 1 Manual Loads 0 Difficulty Rogue Special Mode None Game No. 38 Rogue 19 Adventurer 0 Explorer 19 Win Type - Total 0 Types 0/0/0/0/0/0/0/0/0/0 Lore% 22 Gallery% 24 Achievement% 20 Wizard Run 0 Options --------- Layout 1 ASCII 0 Keyboard 1 Movement Arrows Keybinds 0 Fullscreen 1 Font 24/Smallcaps Map View 50x35 Zoom Use 0% Tactical HUD 1 Map Filters NONE Filters NONE Steam 1 RUN: 8126b6af-7094-49f8-9d1f-88a272379c5b